bitfinex/quotes_SOLUSD_20240913
["timestamp","ask_amount","ask_price","bid_price","bid_amount"]
[1726238635440,23.776884,133.74,133.66,23.54480504]
[1726238635642,7.4788,133.71,133.67,7.481]
[1726238635840,7.4794,133.7,133.67,7.481]
[1726238636733,7.479,133.71,133.67,7.481]
[1726238636950,23.776884,133.74,133.66,23.54480504]
[1726238637154,7.4779,133.73,133.69,7.4799]
[1726238640549,15.1388095,133.76,133.68,23.54480504]
[1726238640749,15.1388095,133.76,133.69,1.49582331]
[1726238640949,15.1388095,133.76,133.68,30.08320504]
[1726238640950,22.6150095,133.76,133.72,7.4781]
[1726238641140,7.4766,133.75,133.72,7.4781]
[1726238641643,22.6151095,133.76,133.72,7.4781]
[1726238644760,15.1388095,133.76,133.7,23.54480504]
[1726238645159,16.6461,133.79,133.7,23.54480504]
[1726238645362,7.4753,133.78,133.73,7.4772]
[1726238645961,7.4753,133.78,133.74,7.4771]
[1726238646341,7.4751,133.78,133.74,7.4771]
[1726238649258,0.316964,133.8,133.74,23.54480504]
[1726238649461,0.316964,133.8,133.76,23.54480504]
[1726238650278,0.316964,133.8,133.78,7.4748]
[1726238650744,0.316964,133.8,133.76,23.54480504]
[1726238651558,0.316964,133.8,133.74,22.2675]
[1726238651861,0.316964,133.8,133.78,7.4744]
[1726238652072,0.316964,133.8,133.75,23.54480504]
[1726238652454,0.316964,133.8,133.78,7.4744]
[1726238654171,0.316964,133.8,133.79,7.4744]
[1726238656970,0.316964,133.8,133.77,7.4755]
[1726238657274,0.316964,133.8,133.75,43.54480504]
[1726238657440,0.316964,133.8,133.78,7.4748]
[1726238657841,0.316964,133.8,133.79,7.4744]
[1726238658462,0.316964,133.8,133.78,7.4748]
[1726238658861,0.316964,133.8,133.79,7.4744]
[1726238659059,0.316964,133.8,133.76,25.03973834]
[1726238659060,0.316964,133.8,133.78,7.4748]
[1726238659882,0.316964,133.8,133.74,45.81230504]
[1726238660178,0.316964,133.8,133.76,7.4757]
[1726238660551,0.316964,133.8,133.77,7.4753]
[1726238661177,0.316964,133.8,133.79,7.4744]
[1726238666358,0.316964,133.8,133.74,22.2675]
[1726238666560,7.790764,133.8,133.75,20.0]
[1726238666756,7.790764,133.8,133.76,7.4756]
[1726238666957,7.790764,133.8,133.77,7.4754]
[1726238667156,7.4744,133.79,133.75,7.4763]
[1726238667551,7.4751,133.78,133.74,7.477]
[1726238667860,7.4756,133.77,133.73,7.4777]
[1726238668275,7.4762,133.76,133.72,7.4782]
[1726238668586,7.4774,133.74,133.7,7.4792]
[1726238669097,7.4766,133.75,133.71,7.4788]
[1726238670480,7.4766,133.75,133.7,7.4793]
[1726238671168,23.776884,133.76,133.69,7.4799]
[1726238671366,23.776884,133.76,133.62,258.3]
[1726238671367,50.0,133.73,133.62,258.3]
[1726238671697,7.4804,133.69,133.6,23.93236544]
[1726238671990,7.4801,133.69,133.64,7.4826]
[1726238672171,23.776884,133.71,133.64,7.4826]
[1726238672172,7.4806,133.68,133.64,7.4826]
[1726238672372,7.4806,133.68,133.63,7.4833]
[1726238672805,23.776884,133.71,133.6,23.93236544]
[1726238672970,7.4799,133.7,133.66,7.4816]
[1726238673295,30.0,133.72,133.62,23.54480504]
[1726238673467,7.4798,133.7,133.65,7.4821]
[1726238674387,7.4798,133.7,133.66,7.4814]
[1726238674882,50.0,133.73,133.62,23.54480504]
[1726238675087,23.776884,133.72,133.64,23.54480504]
[1726238675272,31.255584,133.72,133.67,7.4809]
[1726238675583,7.479,133.71,133.67,7.4809]
[1726238676368,7.479,133.71,133.64,23.54480504]
[1726238676568,7.479,133.71,133.67,7.481]
[1726238677264,23.776884,133.7,133.63,0.2651534]
[1726238677968,7.4803,133.69,133.65,7.482]
[1726238678176,7.4805,133.68,133.64,7.4826]
[1726238679083,7.4801,133.69,133.65,7.4821]
[1726238679793,7.4805,133.68,133.64,7.4826]
[1726238680786,7.4812,133.67,133.63,7.7483534]
[1726238680990,23.776884,133.71,133.63,0.2651534]
[1726238681497,46.256884,133.71,133.63,0.2651534]
[1726238681676,23.776884,133.71,133.63,0.2651534]
[1726238681997,7.4807,133.68,133.64,7.4824]
[1726238683298,7.4812,133.67,133.63,7.7483534]
[1726238683484,7.482,133.66,133.63,0.2651534]
[1726238683795,58.240584,133.68,133.63,0.2651534]
[1726238683978,7.4827,133.64,133.63,0.2651534]
[1726238684702,31.259584,133.64,133.63,0.2651534]
[1726238684870,7.4827,133.64,133.63,0.2651534]
[1726238686629,31.259584,133.64,133.63,0.2651534]
[1726238687696,61.259584,133.64,133.63,0.2651534]
[1726238689598,30.0,133.64,133.63,0.2651534]
[1726238690301,7.4818,133.66,133.63,0.2651534]
[1726238690477,7.4822,133.65,133.63,0.2651534]
[1726238691694,15.7615,133.68,133.63,0.2651534]
[1726238691901,7.4814,133.67,133.63,7.7482534]
[1726238692077,7.4818,133.66,133.63,0.2651534]
[1726238692278,7.4822,133.65,133.63,0.2651534]
[1726238694684,23.2422,133.68,133.64,7.4827]
[1726238695193,7.4815,133.67,133.63,7.7482534]
[1726238696400,65.7615,133.68,133.63,0.2651534]
[1726238696821,7.4825,133.65,133.63,0.2651534]
[1726238697117,7.4823,133.65,133.63,0.2651534]
[1726238698611,7.4818,133.66,133.63,0.2651534]
[1726238698815,15.7615,133.68,133.63,0.2651534]
[1726238699018,23.242,133.68,133.64,7.4826]
[1726238700095,23.242,133.68,133.65,7.4821]
[1726238700299,15.7615,133.68,133.65,7.4821]
[1726238700515,7.4796,133.7,133.66,7.4815]
[1726238701217,7.48,133.69,133.66,7.4815]
[1726238701514,7.4806,133.68,133.64,7.4825]
[1726238701822,7.4817,133.66,133.63,0.2651534]
[1726238702316,7.4823,133.65,133.63,0.2651534]
[1726238702618,23.776884,133.68,133.63,0.2651534]
[1726238702619,7.4827,133.64,133.63,0.2651534]
[1726238702916,23.3054,133.64,133.63,0.2651534]
[1726238703104,45.8227,133.64,133.63,0.2651534]
[1726238703409,53.3054,133.64,133.63,0.2651534]
[1726238703816,77.082284,133.64,133.63,0.2651534]
[1726238704220,99.562284,133.64,133.63,0.2651534]
[1726238705611,77.082284,133.64,133.63,0.2651534]
[1726238705929,99.562284,133.64,133.63,0.2651534]
[1726238706731,77.082284,133.64,133.63,0.2651534]
[1726238708715,37.4827,133.64,133.63,0.2651534]
[1726238710015,61.259584,133.64,133.63,0.2651534]
[1726238710819,37.4827,133.64,133.63,0.2651534]
[1726238712224,61.259584,133.64,133.63,0.2651534]
[1726238712416,31.259584,133.64,133.63,0.2651534]
[1726238712619,7.4827,133.64,133.63,0.2651534]
[1726238714321,31.259584,133.64,133.63,0.2651534]
[1726238715316,23.776884,133.66,133.63,0.2651534]
[1726238715515,7.4827,133.64,133.63,0.2651534]
[1726238716419,7.4824,133.65,133.63,0.2651534]
[1726238716621,18.7016,133.68,133.64,7.4826]
[1726238716622,7.4809,133.68,133.64,7.4826]
[1726238716827,7.4811,133.67,133.63,7.7482534]
[1726238717210,7.4817,133.66,133.63,0.2651534]
[1726238717410,85.2511,133.71,133.64,7.4827]
[1726238717608,7.4806,133.68,133.64,7.4827]
[1726238718326,7.4801,133.69,133.64,7.4827]
[1726238718532,7.4807,133.68,133.64,7.4827]
[1726238721120,7.4801,133.69,133.65,7.4821]
[1726238721710,7.4805,133.68,133.65,7.4821]
[1726238721914,7.4805,133.68,133.64,7.4825]
[1726238722133,23.776884,133.7,133.63,0.2651534]
[1726238722335,7.4822,133.65,133.63,0.2651534]
[1726238722550,23.776884,133.68,133.63,0.2651534]
[1726238722843,7.4827,133.64,133.63,0.2651534]
[1726238723338,7.4824,133.65,133.63,0.2651534]
[1726238723536,7.4813,133.67,133.63,7.7484534]
[1726238723737,31.257784,133.68,133.64,7.4824]
[1726238724263,7.4811,133.67,133.64,7.4824]
[1726238724434,7.4811,133.67,133.63,7.7482534]
[1726238724640,7.4805,133.68,133.64,7.4827]
[1726238724821,7.4801,133.69,133.65,7.4821]
[1726238725022,7.4805,133.68,133.64,7.4825]
[1726238725949,7.4802,133.69,133.65,7.4821]
[1726238726429,29.9602,133.69,133.65,7.4821]
[1726238726738,23.776884,133.7,133.63,0.2651534]
[1726238727046,7.4807,133.68,133.64,7.4825]
[1726238727213,16.553,133.71,133.63,0.2651534]
[1726238727414,7.4792,133.71,133.67,7.481]
[1726238727829,7.4794,133.7,133.63,23.80995844]
[1726238728042,7.4794,133.7,133.66,7.4815]
[1726238729045,7.4794,133.7,133.67,7.481]
[1726238729345,7.4794,133.7,133.66,7.4814]
[1726238732736,23.776884,133.7,133.63,0.2651534]
[1726238732943,7.4812,133.67,133.63,7.7479534]
[1726238733144,7.4817,133.66,133.63,7.7479534]
[1726238733348,7.4817,133.66,133.63,7.7484534]
[1726238733554,7.4823,133.65,133.63,0.2651534]
[1726238733848,7.482,133.66,133.63,0.2651534]
[1726238734655,7.4812,133.67,133.63,7.7483534]
[1726238735153,7.4816,133.66,133.63,0.2651534]
[1726238735341,7.4826,133.65,133.63,0.2651534]
[1726238735758,7.4818,133.66,133.63,0.2651534]
[1726238735950,7.4812,133.67,133.63,7.7483534]
[1726238736254,7.4823,133.65,133.63,0.2651534]
[1726238736652,23.776884,133.68,133.63,0.2651534]
[1726238737741,7.482,133.66,133.63,0.2651534]
[1726238740539,7.4813,133.67,133.63,7.7484534]
[1726238741669,7.4817,133.66,133.63,0.2651534]
[1726238742544,23.776884,133.66,133.63,0.2651534]
[1726238742961,31.259584,133.64,133.63,0.2651534]
[1726238743557,49.966484,133.64,133.63,0.2651534]
[1726238744159,72.446484,133.64,133.63,0.2651534]
[1726238744668,23.776884,133.64,133.63,0.2651534]
[1726238744836,7.4823,133.65,133.63,0.2651534]
[1726238745032,7.4827,133.64,133.63,0.2651534]
[1726238746261,7.4821,133.66,133.63,0.2651534]
[1726238746445,7.4825,133.65,133.63,0.2651534]
[1726238747157,7.4827,133.64,133.63,0.2651534]
[1726238747966,7.4824,133.65,133.63,0.2651534]
[1726238748145,7.4818,133.66,133.63,0.2651534]
[1726238750064,7.4813,133.67,133.63,7.7480534]
[1726238750248,7.4807,133.68,133.64,7.4827]
[1726238750857,7.4822,133.65,133.63,0.2651534]
[1726238754167,7.4827,133.64,133.63,0.2651534]
[1726238756270,31.259584,133.64,133.63,0.2651534]
[1726238760476,7.4824,133.65,133.63,0.2651534]
[1726238760678,7.4818,133.66,133.63,0.2651534]
[1726238761165,7.4824,133.65,133.63,0.2651534]
[1726238761757,7.4827,133.64,133.63,0.2651534]
[1726238762466,7.4826,133.65,133.63,0.2651534]
[1726238762774,7.4815,133.67,133.63,7.7480534]
[1726238764081,7.4816,133.66,133.63,0.2651534]
[1726238764771,7.4824,133.65,133.63,0.2651534]
[1726238764964,7.4818,133.66,133.63,0.2651534]
[1726238765376,18.6997,133.7,133.63,0.2651534]
[1726238765377,50.0,133.7,133.63,0.2651534]
[1726238765576,7.4805,133.68,133.64,7.4825]
[1726238766281,7.4815,133.67,133.63,16.3006534]
[1726238766475,18.6983,133.71,133.64,7.4826]
[1726238766476,7.4806,133.68,133.64,7.4826]
[1726238766674,7.4801,133.69,133.65,7.4821]
[1726238766981,7.4796,133.7,133.66,7.4816]
[1726238767159,15.4487,133.72,133.64,23.54480504]
[1726238767358,7.4784,133.72,133.68,7.4803]
[1726238767582,7.4789,133.71,133.67,7.481]
[1726238768782,7.4784,133.72,133.68,7.4805]
[1726238769297,7.4778,133.73,133.69,7.4799]
[1726238771183,7.4762,133.76,133.72,7.4782]
[1726238771377,7.4761,133.76,133.72,7.4781]
[1726238771574,0.2326874,133.77,133.69,15.9351]
[1726238772081,7.4761,133.76,133.72,7.4781]
[1726238772284,7.4768,133.75,133.71,7.4786]
[1726238773579,7.4762,133.76,133.72,7.4782]
[1726238773967,7.7082874,133.77,133.73,7.4777]
[1726238774487,7.476,133.76,133.72,7.4781]
[1726238775673,0.2326874,133.77,133.7,23.54480504]
[1726238775876,0.2326874,133.77,133.74,7.477]
[1726238776081,0.2326874,133.77,133.7,23.54480504]
[1726238776676,7.7081874,133.77,133.73,7.4773]
[1726238776876,0.2326874,133.77,133.74,7.477]
[1726238777276,7.7081874,133.77,133.73,7.4775]
[1726238777476,7.4761,133.76,133.72,7.4781]
[1726238777882,7.4761,133.76,133.7,23.54480504]
[1726238777883,7.7083874,133.77,133.73,7.4777]
[1726238778189,7.7083874,133.77,133.72,7.4781]
[1726238778190,7.4761,133.76,133.72,7.4781]
[1726238778773,7.4766,133.75,133.71,7.4786]
[1726238779296,73.776884,133.76,133.69,15.9351]
[1726238779986,7.4787,133.72,133.68,14.06]
[1726238780174,7.4787,133.72,133.68,7.4801]
[1726238780781,7.4778,133.73,133.69,7.4798]
[1726238781209,7.4784,133.72,133.68,7.4804]
[1726238781510,7.4794,133.7,133.66,7.4815]
[1726238781883,7.479,133.71,133.67,7.481]
[1726238782305,7.4793,133.71,133.67,7.4807]
[1726238782490,7.4795,133.7,133.66,7.4814]
[1726238783496,7.4789,133.71,133.66,7.4814]
[1726238783807,23.776884,133.73,133.65,45.98110504]
[1726238784010,7.4781,133.73,133.68,7.4803]
[1726238784509,7.4773,133.74,133.69,7.4795]
[1726238784705,15.0902,133.75,133.7,7.4794]
[1726238784909,7.4776,133.74,133.69,7.4798]
[1726238785989,7.4778,133.73,133.69,7.4798]
[1726238786202,7.4773,133.74,133.7,7.4794]
[1726238786386,7.4773,133.74,133.69,7.4798]
[1726238786592,7.4778,133.73,133.69,7.4798]
[1726238786814,7.4783,133.72,133.68,7.4801]
[1726238787111,7.4779,133.73,133.69,7.4796]
[1726238787618,7.4783,133.72,133.68,7.4804]
[1726238788817,15.0902,133.75,133.7,7.4792]
[1726238789487,15.0902,133.75,133.7,7.4793]
[1726238790215,7.4775,133.74,133.7,7.4793]
[1726238790610,7.4778,133.73,133.69,7.4798]
[1726238791091,15.0902,133.75,133.69,7.4798]
[1726238791295,7.4773,133.74,133.7,7.4793]
[1726238791520,7.4782,133.73,133.69,7.4795]
[1726238792296,7.4776,133.74,133.7,7.4793]
[1726238794118,22.567,133.75,133.71,7.4787]
[1726238795617,22.567,133.75,133.7,15.07037396]
[1726238795618,7.4762,133.76,133.73,7.4777]
[1726238795815,0.2326874,133.77,133.73,7.4777]
[1726238795816,7.7082874,133.77,133.73,7.4777]
[1726238796017,7.7082874,133.77,133.73,22.54807396]
[1726238796401,0.2326874,133.77,133.74,22.54747396]
[1726238796715,0.2326874,133.77,133.75,15.07037396]
[1726238797095,0.2326874,133.77,133.71,6.5967]
[1726238797300,7.7081874,133.77,133.73,22.54797396]
[1726238797520,7.7081874,133.77,133.74,15.07037396]
[1726238798096,7.7081874,133.77,133.73,7.4776]
[1726238798720,7.4761,133.76,133.71,6.5967]
[1726238798903,7.4761,133.76,133.72,7.478]
[1726238799098,7.4766,133.75,133.71,6.5967]
[1726238799310,0.2326874,133.77,133.71,6.5967]
[1726238799508,23.776884,133.76,133.68,29.74039251]
[1726238800398,23.776884,133.76,133.71,7.4788]
[1726238800818,7.4768,133.75,133.71,7.4788]
[1726238801028,7.4772,133.74,133.71,7.4788]
[1726238801625,7.4768,133.75,133.71,7.4788]
[1726238802002,7.4762,133.76,133.72,7.4782]
[1726238802501,7.4767,133.75,133.72,7.4782]
[1726238802819,7.4767,133.75,133.71,7.4786]
[1726238803630,7.4762,133.76,133.72,7.4782]
[1726238804125,7.4762,133.76,133.73,7.4776]
[1726238804326,7.7083874,133.77,133.7,23.53519251]
[1726238804532,7.4761,133.76,133.73,7.4775]
[1726238805205,7.4761,133.76,133.72,7.4781]
[1726238805406,7.7083874,133.77,133.7,23.53519251]
[1726238805620,7.7083874,133.77,133.73,7.4774]
[1726238806525,7.4762,133.76,133.72,7.4782]
[1726238806911,7.4762,133.76,133.73,7.4777]
[1726238807129,7.7083874,133.77,133.73,7.4777]
[1726238807914,0.2326874,133.77,133.74,7.477]
[1726238809310,7.7085874,133.77,133.73,7.4776]
[1726238809618,0.2326874,133.77,133.74,7.4769]
[1726238809827,7.7081874,133.77,133.74,7.4769]
[1726238810335,7.7081874,133.77,133.73,7.4776]
[1726238812370,0.2326874,133.77,133.76,31.01119251]
[1726238818733,0.2326874,133.77,133.76,7.476]
[1726238820455,0.2326874,133.77,133.76,22.53040135]
[1726238821875,0.2326874,133.77,133.74,6.5387]
[1726238822034,0.2326874,133.77,133.73,15.05440135]
[1726238822035,7.7081874,133.77,133.73,15.05440135]
[1726238822237,0.2326874,133.77,133.74,15.05440135]
[1726238822453,0.2326874,133.77,133.76,22.53040135]
[1726238822657,0.2326874,133.77,133.76,7.476]
[1726238822847,0.2326874,133.77,133.76,22.53040135]
[1726238823767,0.2326874,133.77,133.76,7.476]
[1726238824138,0.2326874,133.77,133.76,22.53040135]
[1726238825552,0.2326874,133.77,133.76,28.68090135]
[1726238827358,0.2326874,133.77,133.76,52.45778535]
[1726238828665,0.2489204,133.81,133.8,7.4738]
[1726238828864,0.2489204,133.81,133.8,22.52820135]
[1726238831259,0.2489204,133.81,133.8,46.30508535]
[1726238832866,0.2489204,133.81,133.8,7.4738]
[1726238833046,0.2489204,133.81,133.8,22.52820135]
[1726238837964,0.2489204,133.81,133.8,46.30508535]
[1726238838353,0.2489204,133.81,133.8,22.52820135]
[1726238839854,0.2489204,133.81,133.8,7.4738]
[1726238840163,0.2489204,133.81,133.8,22.52820135]
[1726238841671,0.2489204,133.81,133.8,66.30508535]
[1726238842963,0.2489204,133.81,133.8,42.52820135]
[1726238847163,0.2489204,133.81,133.8,7.4738]
[1726238847369,0.2489204,133.81,133.79,7.4742]
[1726238847566,0.2489204,133.81,133.72,6.4994]
[1726238847882,0.2489204,133.81,133.76,15.05440135]
[1726238848280,7.474,133.8,133.76,7.4756]
[1726238848687,0.2489204,133.81,133.78,7.4745]
[1726238848883,0.2489204,133.81,133.78,7.4747]
[1726238849077,0.2489204,133.81,133.77,15.05440135]
[1726238849282,0.2489204,133.81,133.76,15.05440135]
[1726238849483,0.2489204,133.81,133.77,15.05440135]
[1726238849687,0.2489204,133.81,133.76,15.05440135]
[1726238849985,7.7225204,133.81,133.76,7.4759]
[1726238850191,0.2489204,133.81,133.74,22.53110135]
[1726238850392,7.4744,133.79,133.75,7.4764]
[1726238851662,16.4307,133.77,133.69,6.3502]
[1726238851867,16.4307,133.77,133.71,15.05440135]
[1726238852283,16.4307,133.77,133.73,7.4775]
[1726238852794,16.4307,133.77,133.74,7.477]
[1726238853090,16.4307,133.77,133.75,7.4766]
[1726238853509,16.4307,133.77,133.74,22.53140135]
[1726238853667,16.4307,133.77,133.74,7.477]
[1726238854867,16.4307,133.77,133.75,7.4763]
[1726238855371,16.4307,133.77,133.76,7.476]
[1726238856194,16.4307,133.77,133.75,7.4764]
[1726238857075,16.4307,133.77,133.76,7.476]
[1726238857388,16.4307,133.77,133.72,23.53637863]
[1726238857389,16.4307,133.77,133.75,7.4766]
[1726238857569,16.4307,133.77,133.74,7.477]
[1726238857969,16.4307,133.77,133.71,23.776884]
[1726238858690,16.4307,133.77,133.75,7.4765]
[1726238859797,7.474,133.8,133.72,23.53637863]
[1726238860001,16.3057204,133.81,133.78,7.4749]
[1726238860295,23.7789204,133.81,133.77,7.4753]
[1726238860675,16.3057204,133.81,133.74,23.53637863]
[1726238861100,7.4738,133.8,133.76,7.4759]
[1726238861391,16.3057204,133.81,133.71,23.776884]
[1726238861595,7.4753,133.78,133.74,7.477]
[1726238861779,7.4756,133.77,133.73,7.4773]
[1726238862296,7.4751,133.78,133.74,7.4771]
[1726238862497,23.776884,133.8,133.7,23.53637863]
[1726238862695,42.461784,133.8,133.69,6.3502]
[1726238862893,7.476,133.76,133.72,7.4778]
[1726238863074,7.4756,133.77,133.73,7.4777]
[1726238863403,42.461784,133.8,133.74,7.4771]
[1726238863404,7.4751,133.78,133.74,7.4771]
[1726238863771,7.4742,133.8,133.75,7.4766]
[1726238863975,23.776884,133.8,133.7,23.776884]
[1726238864178,7.4757,133.77,133.73,7.4773]
[1726238864695,7.4749,133.78,133.74,7.4769]
[1726238864907,7.4745,133.79,133.75,7.4765]
[1726238866193,7.4751,133.78,133.74,7.4771]
[1726238866916,16.3057204,133.81,133.71,23.53637863]
[1726238867399,16.3057204,133.81,133.73,23.53637863]
[1726238868107,23.7794204,133.81,133.77,7.4753]
[1726238868288,23.7794204,133.81,133.73,23.53637863]
[1726238868289,16.3057204,133.81,133.78,7.4746]
[1726238868492,16.3057204,133.81,133.8,7.4738]
[1726238868493,0.2489204,133.81,133.8,7.4738]
[1726238872402,0.2489204,133.81,133.79,7.4742]
[1726238872699,0.2489204,133.81,133.78,7.4747]
[1726238872907,0.2489204,133.81,133.77,7.4754]
[1726238873081,0.2489204,133.81,133.71,30.01417863]
[1726238873082,16.4088,133.8,133.71,30.01417863]
[1726238873480,16.4088,133.8,133.76,7.4755]
[1726238874109,16.4088,133.8,133.77,7.4754]
[1726238874600,16.4088,133.8,133.76,7.4759]
[1726238875584,23.8827,133.8,133.76,7.4759]
[1726238875793,23.883,133.8,133.75,7.4765]
[1726238876188,16.4088,133.8,133.74,7.4771]
[1726238876586,16.4088,133.8,133.71,30.01417863]
[1726238876587,7.4745,133.79,133.75,7.4764]
[1726238876795,23.8827,133.8,133.75,7.4764]
[1726238876998,23.8827,133.8,133.74,7.477]
[1726238876999,16.4088,133.8,133.74,7.477]
[1726238877392,7.4749,133.78,133.74,7.477]
[1726238877783,7.4759,133.77,133.69,23.53637863]
[1726238878206,7.4759,133.77,133.73,7.4775]
[1726238878515,16.4088,133.8,133.74,7.4771]
[1726238878516,7.4748,133.79,133.74,7.4771]
[1726238878716,7.4751,133.78,133.74,7.4771]
[1726238878908,16.4088,133.8,133.71,23.53637863]
[1726238879099,23.8827,133.8,133.75,7.4766]
[1726238879600,23.8827,133.8,133.76,7.476]
[1726238879912,16.4088,133.8,133.76,7.476]
[1726238880212,16.4088,133.8,133.76,7.4759]
[1726238880590,16.4088,133.8,133.77,7.4752]
[1726238880815,16.4088,133.8,133.78,7.4748]
[1726238881200,16.4088,133.8,133.77,7.4754]
[1726238884424,0.2489204,133.81,133.8,7.4738]
[1726238886306,0.2489204,133.81,133.8,51.250684]
[1726238887909,0.2489204,133.81,133.8,27.4738]
[1726238891200,0.2489204,133.81,133.8,28.96805767]
[1726238891433,0.2489204,133.81,133.8,52.74494167]
[1726238892119,0.2489204,133.81,133.8,51.250684]
[1726238892629,0.2489204,133.81,133.8,7.4738]
[1726238899254,0.2489204,133.81,133.79,7.4742]
[1726238899424,0.2489204,133.81,133.78,7.4745]
[1726238899624,15.9268204,133.81,133.78,7.4745]
[1726238900051,23.4000204,133.81,133.78,7.4745]
[1726238900257,15.9268204,133.81,133.78,7.4745]
[1726238901458,15.9268204,133.81,133.79,7.4743]
[1726238901954,15.9268204,133.81,133.78,7.4747]
[1726238902163,15.9268204,133.81,133.73,6.4974]
[1726238902331,15.9268204,133.81,133.77,7.4753]
[1726238903336,23.4001204,133.81,133.77,7.4753]
[1726238903561,7.474,133.8,133.76,7.4759]
[1726238903732,23.776884,133.8,133.72,7.4781]
[1726238904152,73.776884,133.8,133.72,7.4781]
[1726238904327,7.4756,133.77,133.73,7.4777]
[1726238904531,7.4756,133.77,133.72,7.4781]
[1726238904741,7.4762,133.76,133.72,7.4781]
[1726238904938,22.6266,133.76,133.72,7.4781]
[1726238905729,15.1504,133.76,133.72,7.4781]
[1726238905933,15.1504,133.76,133.74,7.477]
[1726238906933,15.1504,133.76,133.73,7.4775]
[1726238907965,15.1504,133.76,133.72,7.4781]
[1726238908335,15.1504,133.76,133.73,1.49542464]
[1726238908536,15.1504,133.76,133.75,7.4766]
[1726238908746,15.1504,133.76,133.74,7.477]
[1726238909254,15.1504,133.76,133.7,23.53637863]
[1726238909565,21.7954204,133.81,133.72,23.53637863]
[1726238910453,7.4743,133.8,133.72,23.53637863]
[1726238910755,7.4744,133.79,133.75,7.4765]
[1726238910962,7.4749,133.78,133.74,7.477]
[1726238911344,7.4755,133.77,133.73,7.4776]
[1726238911735,7.4755,133.77,133.72,7.4781]
[1726238912239,7.4755,133.77,133.73,7.4777]
[1726238912741,73.776884,133.8,133.7,23.53637863]
[1726238912742,23.776884,133.8,133.7,23.53637863]
[1726238913042,21.7954204,133.81,133.72,23.53637863]
[1726238913249,21.7954204,133.81,133.78,7.4748]
[1726238913651,29.2687204,133.81,133.77,7.4753]
[1726238913852,15.5805204,133.81,133.74,23.53637863]
[1726238914152,15.5805204,133.81,133.78,7.4745]
[1726238914946,15.5805204,133.81,133.79,7.4743]
[1726238915240,15.5805204,133.81,133.78,7.4747]
[1726238915761,15.5805204,133.81,133.74,23.53637863]
[1726238915959,15.5805204,133.81,133.79,7.4743]
[1726238916168,15.5805204,133.81,133.8,7.4738]
[1726238916350,0.2489204,133.81,133.8,7.4738]
[1726238917866,0.2489204,133.81,133.79,7.4742]
[1726238918372,0.2489204,133.81,133.78,7.4747]
[1726238919145,0.2489204,133.81,133.72,22.5055]
[1726238919355,0.2489204,133.81,133.72,46.04187863]
[1726238919571,0.2489204,133.81,133.78,7.4745]
[1726238920178,7.7221204,133.81,133.77,7.4753]
[1726238920467,0.2489204,133.81,133.78,7.4748]
[1726238921447,0.2489204,133.81,133.79,7.4743]
[1726238925175,7.7225204,133.81,133.77,7.475]
[1726238925348,0.2489204,133.81,133.78,7.4747]
[1726238926354,7.7222204,133.81,133.78,7.4747]
[1726238926558,7.7222204,133.81,133.77,7.4753]
[1726238927069,7.7223204,133.81,133.77,7.4754]
[1726238927376,0.2489204,133.81,133.78,7.4749]
[1726238927974,0.2489204,133.81,133.79,7.4743]
[1726238929272,0.2489204,133.81,133.78,7.4747]
[1726238929773,7.7225204,133.81,133.77,7.4753]
[1726238931180,0.2489204,133.81,133.78,7.4749]
[1726238931387,0.2489204,133.81,133.79,7.4743]
[1726238931682,0.2489204,133.81,133.8,7.4738]
[1726238934880,0.2489204,133.81,133.76,23.53637863]
[1726238935072,0.2489204,133.81,133.8,7.4738]
[1726238937173,0.2489204,133.81,133.76,23.53637863]
[1726238937582,0.2489204,133.81,133.79,7.474]
[1726238938193,0.2489204,133.81,133.8,7.4738]
[1726238947509,0.2489204,133.81,133.79,7.474]
[1726238947683,0.2489204,133.81,133.8,7.4738]
[1726238949306,0.2489204,133.81,133.79,7.4741]
[1726238949675,0.2489204,133.81,133.8,7.4738]
[1726238949874,0.2489204,133.81,133.74,30.01017863]